{"text_format":"1","workbook":"xlsx","n_sheets":14,"sheets":["Impressum","Deckblatt","Wartungen, externe Prüfungen","Substrateins. und -anlief.","Substratlagerung","Substrataufb. und -eintrag","Biogasverwertung","Sicherheitseinrichtungen","Gärrestaufbereitung","Gärrestlagerung und -abtransp.","Zusammenfassung","zusätzliche Information","Hilfe","Daten"],"not_rendered":{"charts":0,"images":3,"macros":1,"external_links":0,"defined_names":7,"comments":2,"pivot_tables":0},"unopened":[],"bounds":{"document_bytes":16777216,"sheet_cells":100000,"rows_first":2000,"rows_last":500,"rows_between":2000,"halvings":0,"cell_chars":16384,"cell_head_chars":4096},"cells_cut":0,"cells_raw":0,"read":"whole","date_system":"1900"}

{"sheet":"Impressum","index":0,"n_rows":0,"n_cols":0,"rows_kept":0,"cut":false,"hidden":false,"merged":[]}

{"sheet":"Deckblatt","index":1,"n_rows":48,"n_cols":7,"rows_kept":48,"cut":false,"hidden":false,"merged":[[34,1,34,5],[35,1,35,5],[6,5,6,6],[7,5,7,6],[8,5,8,6],[9,5,9,6],[10,5,10,6],[6,2,6,3],[7,2,7,3],[8,2,8,3],[9,2,9,3],[10,2,10,3],[25,1,25,5],[26,1,26,5],[27,1,27,5],[28,1,28,5],[46,0,46,6],[48,0,48,1],[38,2,38,4],[38,0,38,1],[39,0,39,1],[39,2,39,4],[41,2,41,4],[42,2,42,4],[43,2,43,4],[40,0,40,1],[40,2,40,4],[41,0,41,1],[43,0,43,1],[14,0,14,5],[0,0,2,6],[45,0,45,1],[15,0,15,5],[16,0,16,5],[17,0,17,5],[18,0,18,5],[21,0,21,5],[19,0,19,5],[20,0,20,5],[29,1,29,5],[30,1,30,5],[31,1,31,5],[32,1,32,5],[33,1,33,5],[42,0,42,1]]}
["Überwachung von \ngenehmigungsbedürftigen Biogasanlagen"]
[]
[]
[]
["Betriebsangaben:",null,null,null,"Bearbeiterangaben:"]
[]
["Betriebsname:",null,null,null,"Bearbeiter:"]
["Straße/Hausnr.:",null,null,null,"Abteilung:"]
["PLZ/Ort:",null,null,null,"Referat:"]
["Tel./E-Mail:",null,null,null,"Standort:"]
["Betreiber:",null,null,null,"Tel./E-Mail:"]
[]
["Anlage nach der 4. BImSchV:"]
[]
["Anlagenart",null,null,null,null,null,"Ordnungsnummer"]
[]
[]
[]
[]
[]
[]
[]
[]
["Genehmigungen/Anzeigen/Anordnungen:"]
[]
["Nr.","Dokument",null,null,null,null,"Datum"]
["1."]
["2."]
["3."]
["4."]
["5."]
["6."]
["7."]
["8."]
["9."]
["10."]
[]
["Teilnehmer:"]
["Name",null,"Unternehmen, Behörde, Institution",null,null,"Telefon","E-Mail"]
[]
[]
[]
[]
[]
[]
["Anlass:"]
[]
["Datum:",null,"Uhrzeit:"]

{"sheet":"Wartungen, externe Prüfungen","index":2,"n_rows":41,"n_cols":9,"rows_kept":41,"cut":false,"hidden":false,"merged":[[9,1,9,6],[10,1,10,6],[18,0,18,8],[2,0,2,1],[4,0,4,8],[5,1,5,6],[6,1,6,6],[24,1,24,6],[0,0,0,8],[11,0,11,8],[12,1,12,6],[13,1,13,6],[14,1,14,6],[15,1,15,6],[16,1,16,6],[17,1,17,6],[19,1,19,6],[20,1,20,6],[21,1,21,6],[22,1,22,6],[23,1,23,6],[7,1,7,6],[8,1,8,6],[25,0,25,8],[26,1,26,6],[27,1,27,6],[28,1,28,6],[29,1,29,6],[30,1,30,6],[31,1,31,6],[32,0,32,8],[33,1,33,6],[34,1,34,6],[35,1,35,6],[36,1,36,6],[37,1,37,6],[38,1,38,6],[40,0,40,1]]}
["Wartungen und externe Prüfungen"]
[]
["Kontrollpunkte:"]
[]
["Kontrolle der ausstehenden Punkte aus der letzten Überwachung"]
["Nr.","Inhalt",null,null,null,null,null,"Datum","Status"]
[1]
[2]
[3]
[4]
[5]
["wiederkehrende sicherheitstechnische Überprüfung durch den Sachverständigen nach § 29a BImSchG"]
["Nr.","Inhalt",null,null,null,null,null,"Datum","Status"]
[1]
[2]
[3]
[4]
[5]
["Wartungen"]
["Nr.","Inhalt",null,null,null,null,null,"Datum","Status"]
[1,"primäre Gasverbrauchseinrichtung"]
[2,"Gaswarnanlage"]
[3,"elektrische Betriebsmittel"]
[4,"Blitzschutzanlage"]
[5,{"$f":"IF(ISERROR(HLOOKUP($A$19,Daten!$N$2:$P$10,6,0)),\"\",HLOOKUP($A$19,Daten!$N$2:$P$10,6,0))","v":""}]
["regelmäßige Dichtigkeits-/Leckageprüfung"]
["Nr.","Inhalt",null,null,null,null,null,"Datum","Status"]
[1]
[2]
[3]
[4]
[5]
["Überprüfung der Betriebsanweisungen, der Eigenkontrolle und des Betriebstagebuches"]
["Nr.","Inhalt",null,null,null,null,null,"Datum","Status"]
[1]
[2]
[3]
[4]
[5]
[]
["Kommentar:"]

{"sheet":"Substrateins. und -anlief.","index":3,"n_rows":38,"n_cols":9,"rows_kept":38,"cut":false,"hidden":false,"merged":[[37,0,37,1],[8,1,8,7],[0,0,0,8],[4,1,4,7],[5,1,5,7],[6,1,6,7],[7,1,7,7],[2,0,2,1],[22,0,22,8],[28,1,28,7],[29,1,29,7],[26,0,26,8],[11,7,11,8],[12,7,12,8],[13,7,13,8],[14,7,14,8],[24,0,24,1],[33,1,33,7],[34,1,34,7],[15,7,15,8],[16,7,16,8],[17,7,17,8],[19,7,19,8],[18,7,18,8],[35,1,35,7],[27,1,27,7],[30,1,30,7],[31,1,31,7],[11,0,11,1],[12,0,12,1],[13,0,13,1],[14,0,14,1],[15,0,15,1],[16,0,16,1],[17,0,17,1],[18,0,18,1],[19,0,19,1],[20,0,20,1],[20,7,20,8],[32,1,32,7],[9,2,9,3],[9,4,9,5],[9,0,9,1],[9,7,9,8],[10,0,10,1],[10,7,10,8]]}
["Substrateinsatz"]
[]
["Kontrollpunkte:"]
[]
["Nr.","Inhalt",null,null,null,null,null,null,"Status"]
[1,"genehmigungskonformer Substrateinsatz"]
[2]
[3]
[4]
["Substratart",null,"genehmigte \nMenge",null,"eingesetzte \nMenge",null,"Status","Kommentar"]
[" ",null,"[t/d]","[t/a]","[t/d]","[t/a]"]
[null,null,{"$f":"D12/365","v":0},{"$f":"C12*365","v":0},{"$f":"F12/365","v":0},{"$f":"E12*365","v":0},{"$f":"IF(AND(D12<>0,F12<>0),(IF(F12=\"\",\"\",IF(D12=\"\",\"\",IF(F12>D12,\"überschritten\",IF(F12<=D12,\"OK\",\"\"))))),)","v":0}]
[null,null,0,0,0,0,{"$f":"IF(AND(D13<>0,F13<>0),(IF(F13=\"\",\"\",IF(D13=\"\",\"\",IF(F13>D13,\"überschritten\",IF(F13<=D13,\"OK\",\"\"))))),)","v":0}]
[null,null,0,0,0,0,0]
[null,null,0,0,0,0,0]
[null,null,0,0,0,0,0]
[null,null,0,0,0,0,0]
[null,null,0,0,0,0,0]
[null,null,0,0,0,0,0]
[null,null,0,0,0,0,0]
[null,null,0,0,0,0,0]
[]
["Substratanlieferung"]
[]
["Kontrollpunkte:"]
[]
["Anlieferung"]
["Nr.","Inhalt",null,null,null,null,null,null,"Status"]
[1,{"$f":"IF(ISERROR(HLOOKUP($A$27,Daten!$D$2:$E$10,2,0)),\"\",HLOOKUP($A$27,Daten!$D$2:$E$10,2,0))","v":"Befestigung und Sauberkeit der Fahrwege"}]
[2,{"$f":"IF(ISERROR(HLOOKUP($A$27,Daten!$D$2:$E$10,3,0)),\"\",HLOOKUP($A$27,Daten!$D$2:$E$10,3,0))","v":"Anlieferung der staubenden/geruchsintensiven Substraten in geschlossenen Behältern"}]
[3,{"$f":"IF(ISERROR(HLOOKUP($A$27,Daten!$D$2:$E$10,4,0)),\"\",HLOOKUP($A$27,Daten!$D$2:$E$10,4,0))","v":"Befeuchtung der Fahrwege, bei Gefahr von hohen Staubemissionen"}]
[4,{"$f":"IF(ISERROR(HLOOKUP($A$27,Daten!$D$2:$E$10,5,0)),\"\",HLOOKUP($A$27,Daten!$D$2:$E$10,5,0))","v":"Anzahl und Zeit der Anliefervorgänge im Vergleich zu den genehmigten (optional)"}]
[5,{"$f":"IF(ISERROR(HLOOKUP($A$27,Daten!$D$2:$E$10,6,0)),\"\",HLOOKUP($A$27,Daten!$D$2:$E$10,6,0))","v":0}]
[6,{"$f":"IF(ISERROR(HLOOKUP($A$27,Daten!$D$2:$E$10,7,0)),\"\",HLOOKUP($A$27,Daten!$D$2:$E$10,7,0))","v":0}]
[7,{"$f":"IF(ISERROR(HLOOKUP($A$27,Daten!$D$2:$E$10,8,0)),\"\",HLOOKUP($A$27,Daten!$D$2:$E$10,8,0))","v":0}]
[8,{"$f":"IF(ISERROR(HLOOKUP($A$27,Daten!$D$2:$E$10,9,0)),\"\",HLOOKUP($A$27,Daten!$D$2:$E$10,9,0))","v":0}]
[]
["Kommentar:"]

{"sheet":"Substratlagerung","index":4,"n_rows":86,"n_cols":8,"rows_kept":86,"cut":false,"hidden":false,"merged":[[83,1,83,6],[2,0,2,2],[85,0,85,1],[35,0,35,1],[52,0,52,2],[78,1,78,6],[79,1,79,6],[80,1,80,6],[81,1,81,6],[82,1,82,6],[73,1,73,6],[74,0,74,7],[75,1,75,6],[76,1,76,6],[77,1,77,6],[68,1,68,6],[69,1,69,6],[70,1,70,6],[71,1,71,6],[72,1,72,6],[32,1,32,6],[33,1,33,6],[54,0,54,7],[55,1,55,6],[56,1,56,6],[57,1,57,6],[58,1,58,6],[59,1,59,6],[60,1,60,6],[61,1,61,6],[62,1,62,6],[63,1,63,6],[64,0,64,7],[65,1,65,6],[66,1,66,6],[67,1,67,6],[27,1,27,6],[28,1,28,6],[29,1,29,6],[30,1,30,6],[31,1,31,6],[13,1,13,6],[50,0,50,7],[14,0,14,7],[15,1,15,6],[16,1,16,6],[17,1,17,6],[18,1,18,6],[19,1,19,6],[20,1,20,6],[21,1,21,6],[22,1,22,6],[23,1,23,6],[24,0,24,7],[25,1,25,6],[26,1,26,6],[8,1,8,6],[9,1,9,6],[10,1,10,6],[11,1,11,6],[12,1,12,6],[0,0,0,7],[4,0,4,7],[5,1,5,6],[6,1,6,6],[7,1,7,6]]}
["Substratlagerung"]
[]
["Kontrollpunkte:"]
[]
[]
["Nr.","Inhalt",null,null,null,null,null,"Status"]
[1,{"$f":"IF(ISERROR(HLOOKUP($A$5,Daten!$G$2:$L$10,2,0)),\"\",HLOOKUP($A$5,Daten!$G$2:$L$10,2,0))","v":""}]
[2,{"$f":"IF(ISERROR(HLOOKUP($A$5,Daten!$G$2:$L$10,3,0)),\"\",HLOOKUP($A$5,Daten!$G$2:$L$10,3,0))","v":""}]
[3,{"$f":"IF(ISERROR(HLOOKUP($A$5,Daten!$G$2:$L$10,4,0)),\"\",HLOOKUP($A$5,Daten!$G$2:$L$10,4,0))","v":""}]
[4,{"$f":"IF(ISERROR(HLOOKUP($A$5,Daten!$G$2:$L$10,5,0)),\"\",HLOOKUP($A$5,Daten!$G$2:$L$10,5,0))","v":""}]
[5,{"$f":"IF(ISERROR(HLOOKUP($A$5,Daten!$G$2:$L$10,6,0)),\"\",HLOOKUP($A$5,Daten!$G$2:$L$10,6,0))","v":""}]
[6,{"$f":"IF(ISERROR(HLOOKUP($A$5,Daten!$G$2:$L$10,7,0)),\"\",HLOOKUP($A$5,Daten!$G$2:$L$10,7,0))","v":""}]
[7,{"$f":"IF(ISERROR(HLOOKUP($A$5,Daten!$G$2:$L$10,8,0)),\"\",HLOOKUP($A$5,Daten!$G$2:$L$10,8,0))","v":""}]
[8,{"$f":"IF(ISERROR(HLOOKUP($A$5,Daten!$G$2:$L$10,9,0)),\"\",HLOOKUP($A$5,Daten!$G$2:$L$10,9,0))","v":""}]
[]
["Nr.","Inhalt",null,null,null,null,null,"Status"]
[1,{"$f":"IF(ISERROR(HLOOKUP($A$15,Daten!$G$2:$L$10,2,0)),\"\",HLOOKUP($A$15,Daten!$G$2:$L$10,2,0))","v":""}]
[2,{"$f":"IF(ISERROR(HLOOKUP($A$15,Daten!$G$2:$L$10,3,0)),\"\",HLOOKUP($A$15,Daten!$G$2:$L$10,3,0))","v":""}]
[3,{"$f":"IF(ISERROR(HLOOKUP($A$15,Daten!$G$2:$L$10,4,0)),\"\",HLOOKUP($A$15,Daten!$G$2:$L$10,4,0))","v":""}]
[4,{"$f":"IF(ISERROR(HLOOKUP($A$15,Daten!$G$2:$L$10,5,0)),\"\",HLOOKUP($A$15,Daten!$G$2:$L$10,5,0))","v":""}]
[5,{"$f":"IF(ISERROR(HLOOKUP($A$15,Daten!$G$2:$L$10,6,0)),\"\",HLOOKUP($A$15,Daten!$G$2:$L$10,6,0))","v":""}]
[6,{"$f":"IF(ISERROR(HLOOKUP($A$15,Daten!$G$2:$L$10,7,0)),\"\",HLOOKUP($A$15,Daten!$G$2:$L$10,7,0))","v":""}]
[7,{"$f":"IF(ISERROR(HLOOKUP($A$15,Daten!$G$2:$L$10,8,0)),\"\",HLOOKUP($A$15,Daten!$G$2:$L$10,8,0))","v":""}]
[8,{"$f":"IF(ISERROR(HLOOKUP($A$15,Daten!$G$2:$L$10,9,0)),\"\",HLOOKUP($A$15,Daten!$G$2:$L$10,9,0))","v":""}]
[]
["Nr.","Inhalt",null,null,null,null,null,"Status"]
[1,{"$f":"IF(ISERROR(HLOOKUP($A$25,Daten!$G$2:$L$10,2,0)),\"\",HLOOKUP($A$25,Daten!$G$2:$L$10,2,0))","v":""}]
[2,{"$f":"IF(ISERROR(HLOOKUP($A$25,Daten!$G$2:$L$10,3,0)),\"\",HLOOKUP($A$25,Daten!$G$2:$L$10,3,0))","v":""}]
[3,{"$f":"IF(ISERROR(HLOOKUP($A$25,Daten!$G$2:$L$10,4,0)),\"\",HLOOKUP($A$25,Daten!$G$2:$L$10,4,0))","v":""}]
[4,{"$f":"IF(ISERROR(HLOOKUP($A$25,Daten!$G$2:$L$10,5,0)),\"\",HLOOKUP($A$25,Daten!$G$2:$L$10,5,0))","v":""}]
[5,{"$f":"IF(ISERROR(HLOOKUP($A$25,Daten!$G$2:$L$10,6,0)),\"\",HLOOKUP($A$25,Daten!$G$2:$L$10,6,0))","v":""}]
[6,{"$f":"IF(ISERROR(HLOOKUP($A$25,Daten!$G$2:$L$10,7,0)),\"\",HLOOKUP($A$25,Daten!$G$2:$L$10,7,0))","v":""}]
[7,{"$f":"IF(ISERROR(HLOOKUP($A$25,Daten!$G$2:$L$10,8,0)),\"\",HLOOKUP($A$25,Daten!$G$2:$L$10,8,0))","v":""}]
[8,{"$f":"IF(ISERROR(HLOOKUP($A$25,Daten!$G$2:$L$10,9,0)),\"\",HLOOKUP($A$25,Daten!$G$2:$L$10,9,0))","v":""}]
[]
["Kommentar:"]
[]
[]
[]
[]
[]
[]
[]
[]
[]
[]
[]
[]
[]
[]
["Substratlagerung"]
[]
["Kontrollpunkte:"]
[]
[]
["Nr.","Inhalt",null,null,null,null,null,"Status"]
[1,{"$f":"IF(ISERROR(HLOOKUP($A$55,Daten!$G$2:$L$10,2,0)),\"\",HLOOKUP($A$55,Daten!$G$2:$L$10,2,0))","v":""}]
[2,{"$f":"IF(ISERROR(HLOOKUP($A$55,Daten!$G$2:$L$10,3,0)),\"\",HLOOKUP($A$55,Daten!$G$2:$L$10,3,0))","v":""}]
[3,{"$f":"IF(ISERROR(HLOOKUP($A$55,Daten!$G$2:$L$10,4,0)),\"\",HLOOKUP($A$55,Daten!$G$2:$L$10,4,0))","v":""}]
[4,{"$f":"IF(ISERROR(HLOOKUP($A$55,Daten!$G$2:$L$10,5,0)),\"\",HLOOKUP($A$55,Daten!$G$2:$L$10,5,0))","v":""}]
[5,{"$f":"IF(ISERROR(HLOOKUP($A$55,Daten!$G$2:$L$10,6,0)),\"\",HLOOKUP($A$55,Daten!$G$2:$L$10,6,0))","v":""}]
[6,{"$f":"IF(ISERROR(HLOOKUP($A$55,Daten!$G$2:$L$10,7,0)),\"\",HLOOKUP($A$55,Daten!$G$2:$L$10,7,0))","v":""}]
[7,{"$f":"IF(ISERROR(HLOOKUP($A$55,Daten!$G$2:$L$10,8,0)),\"\",HLOOKUP($A$55,Daten!$G$2:$L$10,8,0))","v":""}]
[8,{"$f":"IF(ISERROR(HLOOKUP($A$55,Daten!$G$2:$L$10,9,0)),\"\",HLOOKUP($A$55,Daten!$G$2:$L$10,9,0))","v":""}]
[]
["Nr.","Inhalt",null,null,null,null,null,"Status"]
[1,{"$f":"IF(ISERROR(HLOOKUP($A$65,Daten!$G$2:$L$10,2,0)),\"\",HLOOKUP($A$65,Daten!$G$2:$L$10,2,0))","v":""}]
[2,{"$f":"IF(ISERROR(HLOOKUP($A$65,Daten!$G$2:$L$10,3,0)),\"\",HLOOKUP($A$65,Daten!$G$2:$L$10,3,0))","v":""}]
[3,{"$f":"IF(ISERROR(HLOOKUP($A$65,Daten!$G$2:$L$10,4,0)),\"\",HLOOKUP($A$65,Daten!$G$2:$L$10,4,0))","v":""}]
[4,{"$f":"IF(ISERROR(HLOOKUP($A$65,Daten!$G$2:$L$10,5,0)),\"\",HLOOKUP($A$65,Daten!$G$2:$L$10,5,0))","v":""}]
[5,{"$f":"IF(ISERROR(HLOOKUP($A$65,Daten!$G$2:$L$10,6,0)),\"\",HLOOKUP($A$65,Daten!$G$2:$L$10,6,0))","v":""}]
[6,{"$f":"IF(ISERROR(HLOOKUP($A$65,Daten!$G$2:$L$10,7,0)),\"\",HLOOKUP($A$65,Daten!$G$2:$L$10,7,0))","v":""}]
[7,{"$f":"IF(ISERROR(HLOOKUP($A$65,Daten!$G$2:$L$10,8,0)),\"\",HLOOKUP($A$65,Daten!$G$2:$L$10,8,0))","v":""}]
[8,{"$f":"IF(ISERROR(HLOOKUP($A$65,Daten!$G$2:$L$10,9,0)),\"\",HLOOKUP($A$65,Daten!$G$2:$L$10,9,0))","v":""}]
[]
["Nr.","Inhalt",null,null,null,null,null,"Status"]
[1,{"$f":"IF(ISERROR(HLOOKUP($A$75,Daten!$G$2:$L$10,2,0)),\"\",HLOOKUP($A$75,Daten!$G$2:$L$10,2,0))","v":""}]
[2,{"$f":"IF(ISERROR(HLOOKUP($A$75,Daten!$G$2:$L$10,3,0)),\"\",HLOOKUP($A$75,Daten!$G$2:$L$10,3,0))","v":""}]
[3,{"$f":"IF(ISERROR(HLOOKUP($A$75,Daten!$G$2:$L$10,4,0)),\"\",HLOOKUP($A$75,Daten!$G$2:$L$10,4,0))","v":""}]
[4,{"$f":"IF(ISERROR(HLOOKUP($A$75,Daten!$G$2:$L$10,5,0)),\"\",HLOOKUP($A$75,Daten!$G$2:$L$10,5,0))","v":""}]
[5,{"$f":"IF(ISERROR(HLOOKUP($A$75,Daten!$G$2:$L$10,6,0)),\"\",HLOOKUP($A$75,Daten!$G$2:$L$10,6,0))","v":""}]
[6,{"$f":"IF(ISERROR(HLOOKUP($A$75,Daten!$G$2:$L$10,7,0)),\"\",HLOOKUP($A$75,Daten!$G$2:$L$10,7,0))","v":""}]
[7,{"$f":"IF(ISERROR(HLOOKUP($A$75,Daten!$G$2:$L$10,8,0)),\"\",HLOOKUP($A$75,Daten!$G$2:$L$10,8,0))","v":""}]
[8,{"$f":"IF(ISERROR(HLOOKUP($A$75,Daten!$G$2:$L$10,9,0)),\"\",HLOOKUP($A$75,Daten!$G$2:$L$10,9,0))","v":""}]
[]
["Kommentar:"]

{"sheet":"Substrataufb. und -eintrag","index":5,"n_rows":39,"n_cols":8,"rows_kept":39,"cut":false,"hidden":false,"merged":[[0,0,0,7],[2,0,2,2],[17,1,17,6],[19,0,19,7],[21,0,21,2],[12,1,12,6],[13,1,13,6],[9,1,9,6],[10,1,10,6],[14,1,14,6],[15,1,15,6],[16,1,16,6],[11,0,11,7],[4,0,4,7],[5,1,5,6],[6,1,6,6],[7,1,7,6],[8,1,8,6],[23,0,23,7],[24,1,24,6],[30,0,30,7],[31,1,31,6],[25,1,25,6],[26,1,26,6],[27,1,27,6],[28,1,28,6],[29,1,29,6],[38,0,38,1],[32,1,32,6],[33,1,33,6],[34,1,34,6],[35,1,35,6],[36,1,36,6]]}
["Substrataufbereitung"]
[]
["Kontrollpunkte:"]
[]
[]
["Nr.","Inhalt",null,null,null,null,null,"Status"]
[1,{"$f":"IF(ISERROR(HLOOKUP($A$5,Daten!$N$2:$P$10,2,0)),\"\",HLOOKUP($A$5,Daten!$N$2:$P$10,2,0))","v":""}]
[2,{"$f":"IF(ISERROR(HLOOKUP($A$5,Daten!$N$2:$P$10,3,0)),\"\",HLOOKUP($A$5,Daten!$N$2:$P$10,3,0))","v":""}]
[3,{"$f":"IF(ISERROR(HLOOKUP($A$5,Daten!$N$2:$P$10,4,0)),\"\",HLOOKUP($A$5,Daten!$N$2:$P$10,4,0))","v":""}]
[4,{"$f":"IF(ISERROR(HLOOKUP($A$5,Daten!$N$2:$P$10,5,0)),\"\",HLOOKUP($A$5,Daten!$N$2:$P$10,5,0))","v":""}]
[5,{"$f":"IF(ISERROR(HLOOKUP($A$5,Daten!$N$2:$P$10,6,0)),\"\",HLOOKUP($A$5,Daten!$N$2:$P$10,6,0))","v":""}]
[]
["Nr.","Inhalt",null,null,null,null,null,"Status"]
[1,{"$f":"IF(ISERROR(HLOOKUP($A$12,Daten!$N$2:$P$10,2,0)),\"\",HLOOKUP($A$12,Daten!$N$2:$P$10,2,0))","v":""}]
[2,{"$f":"IF(ISERROR(HLOOKUP($A$12,Daten!$N$2:$P$10,3,0)),\"\",HLOOKUP($A$12,Daten!$N$2:$P$10,3,0))","v":""}]
[3,{"$f":"IF(ISERROR(HLOOKUP($A$12,Daten!$N$2:$P$10,4,0)),\"\",HLOOKUP($A$12,Daten!$N$2:$P$10,4,0))","v":""}]
[4,{"$f":"IF(ISERROR(HLOOKUP($A$12,Daten!$N$2:$P$10,5,0)),\"\",HLOOKUP($A$12,Daten!$N$2:$P$10,5,0))","v":""}]
[5,{"$f":"IF(ISERROR(HLOOKUP($A$12,Daten!$N$2:$P$10,6,0)),\"\",HLOOKUP($A$12,Daten!$N$2:$P$10,6,0))","v":""}]
[]
["Substrateintrag"]
[]
["Kontrollpunkte:"]
[]
[]
["Nr.","Inhalt",null,null,null,null,null,"Status"]
[1,{"$f":"IF(ISERROR(HLOOKUP($A$24,Daten!$R$2:$T$10,2,0)),\"\",HLOOKUP($A$24,Daten!$R$2:$T$10,2,0))","v":""}]
[2,{"$f":"IF(ISERROR(HLOOKUP($A$24,Daten!$R$2:$T$10,3,0)),\"\",HLOOKUP($A$24,Daten!$R$2:$T$10,3,0))","v":""}]
[3,{"$f":"IF(ISERROR(HLOOKUP($A$24,Daten!$R$2:$T$10,4,0)),\"\",HLOOKUP($A$24,Daten!$R$2:$T$10,4,0))","v":""}]
[4,{"$f":"IF(ISERROR(HLOOKUP($A$24,Daten!$R$2:$T$10,5,0)),\"\",HLOOKUP($A$24,Daten!$R$2:$T$10,5,0))","v":""}]
[5,{"$f":"IF(ISERROR(HLOOKUP($A$24,Daten!$R$2:$T$10,6,0)),\"\",HLOOKUP($A$24,Daten!$R$2:$T$10,6,0))","v":""}]
[]
["Nr.","Inhalt",null,null,null,null,null,"Status"]
[1,{"$f":"IF(ISERROR(HLOOKUP($A$31,Daten!$R$2:$T$10,2,0)),\"\",HLOOKUP($A$31,Daten!$R$2:$T$10,2,0))","v":""}]
[2,{"$f":"IF(ISERROR(HLOOKUP($A$31,Daten!$R$2:$T$10,3,0)),\"\",HLOOKUP($A$31,Daten!$R$2:$T$10,3,0))","v":""}]
[3,{"$f":"IF(ISERROR(HLOOKUP($A$31,Daten!$R$2:$T$10,4,0)),\"\",HLOOKUP($A$31,Daten!$R$2:$T$10,4,0))","v":""}]
[4,{"$f":"IF(ISERROR(HLOOKUP($A$31,Daten!$R$2:$T$10,5,0)),\"\",HLOOKUP($A$31,Daten!$R$2:$T$10,5,0))","v":""}]
[5,{"$f":"IF(ISERROR(HLOOKUP($A$31,Daten!$R$2:$T$10,6,0)),\"\",HLOOKUP($A$31,Daten!$R$2:$T$10,6,0))","v":""}]
[]
["Kommentar:"]

{"sheet":"Biogasverwertung","index":6,"n_rows":184,"n_cols":8,"rows_kept":184,"cut":false,"hidden":false,"merged":[[32,0,32,3],[33,0,33,3],[26,0,26,1],[26,6,26,7],[2,0,2,1],[39,0,39,1],[11,1,11,6],[12,1,12,6],[13,1,13,6],[4,0,4,7],[23,0,23,1],[23,6,23,7],[24,0,24,1],[24,6,24,7],[25,0,25,1],[25,6,25,7],[20,0,20,1],[20,6,20,7],[33,4,33,6],[34,4,34,6],[35,4,35,6],[36,4,36,6],[37,4,37,6],[34,0,34,3],[28,4,28,6],[29,4,29,6],[30,4,30,6],[31,4,31,6],[15,5,16,5],[15,4,16,4],[15,2,16,2],[15,3,16,3],[28,0,28,3],[29,0,29,3],[15,0,16,1],[21,0,21,1],[21,6,21,7],[22,0,22,1],[22,6,22,7],[17,0,17,1],[17,6,17,7],[18,0,18,1],[18,6,18,7],[19,0,19,1],[19,6,19,7],[15,6,16,7],[63,0,63,7],[60,1,60,6],[61,1,61,6],[71,0,71,1],[71,6,71,7],[72,0,72,1],[72,6,72,7],[73,0,73,1],[73,6,73,7],[65,0,65,1],[65,6,65,7],[66,0,66,1],[66,6,66,7],[67,0,67,1],[67,6,67,7],[68,0,68,1],[68,6,68,7],[69,0,69,1],[69,6,69,7],[70,0,70,1],[70,6,70,7],[64,6,64,7],[64,0,64,1],[0,0,0,7],[32,4,32,6],[38,0,38,3],[38,4,38,6],[51,0,51,1],[53,0,53,7],[54,1,54,6],[55,1,55,6],[62,1,62,6],[30,0,30,3],[31,0,31,3],[56,1,56,6],[57,1,57,6],[58,1,58,6],[59,1,59,6],[5,1,5,6],[14,0,14,7],[6,1,6,6],[7,1,7,6],[8,1,8,6],[9,1,9,6],[10,1,10,6],[35,0,35,3],[36,0,36,3],[78,0,78,3],[78,4,78,6],[79,0,79,3],[79,4,79,6],[80,0,80,3],[80,4,80,6],[74,0,74,1],[74,6,74,7],[76,0,76,3],[76,4,76,6],[77,0,77,3],[77,4,77,6],[84,0,84,3],[84,4,84,6],[85,4,85,6],[86,0,86,3],[86,4,86,6],[81,0,81,3],[81,4,81,6],[82,0,82,3],[82,4,82,6],[83,0,83,3],[83,4,83,6],[85,0,85,3],[115,0,115,1],[115,6,115,7],[116,0,116,1],[116,6,116,7],[113,0,113,1],[113,6,113,7],[87,0,87,1],[108,1,108,6],[109,1,109,6],[110,1,110,6],[111,0,111,7],[112,0,112,1],[112,6,112,7],[99,0,99,1],[101,0,101,7],[102,1,102,6],[103,1,103,6],[104,1,104,6],[105,1,105,6],[106,1,106,6],[107,1,107,6],[114,0,114,1],[114,6,114,7],[117,0,117,1],[117,6,117,7],[118,0,118,1],[135,0,135,1],[130,0,130,3],[130,4,130,6],[131,0,131,3],[131,4,131,6],[132,0,132,3],[132,4,132,6],[127,0,127,3],[127,4,127,6],[128,0,128,3],[128,4,128,6],[129,0,129,3],[129,4,129,6],[118,6,118,7],[119,0,119,1],[119,6,119,7],[124,0,124,3],[124,4,124,6],[125,0,125,3],[125,4,125,6],[126,0,126,3],[126,4,126,6],[120,0,120,1],[120,6,120,7],[121,0,121,1],[121,6,121,7],[122,0,122,1],[122,6,122,7],[147,0,147,1],[149,0,149,7],[150,1,150,6],[151,1,151,6],[152,1,152,6],[133,0,133,3],[133,4,133,6],[134,0,134,3],[134,4,134,6],[161,0,161,1],[161,6,161,7],[158,1,158,6],[159,0,159,7],[153,1,153,6],[154,1,154,6],[155,1,155,6],[156,1,156,6],[157,1,157,6],[160,0,160,1],[160,6,160,7],[164,0,164,1],[164,6,164,7],[165,0,165,1],[165,6,165,7],[166,0,166,1],[166,6,166,7],[162,0,162,1],[162,6,162,7],[163,0,163,1],[163,6,163,7],[172,0,172,3],[172,4,172,6],[173,0,173,3],[173,4,173,6],[167,0,167,1],[167,6,167,7],[168,0,168,1],[168,6,168,7],[169,0,169,1],[169,6,169,7],[183,0,183,1],[49,0,49,7],[97,0,97,7],[145,0,145,7],[180,0,180,3],[180,4,180,6],[181,0,181,3],[181,4,181,6],[182,0,182,3],[182,4,182,6],[177,0,177,3],[177,4,177,6],[178,0,178,3],[178,4,178,6],[179,0,179,3],[179,4,179,6],[174,0,174,3],[174,4,174,6],[175,0,175,3],[175,4,175,6],[176,0,176,3],[176,4,176,6],[170,0,170,1],[170,6,170,7]]}
["Biogasverwertung"]
[]
["Kontrollpunkte:"]
[]
[]
["Nr.","Inhalt",null,null,null,null,null,"Status"]
[1,{"$f":"IF(ISERROR(HLOOKUP($A$5,Daten!$Z$2:$AC$10,2,0)),\"\",HLOOKUP($A$5,Daten!$Z$2:$AC$10,2,0))","v":""}]
[2,{"$f":"IF(ISERROR(HLOOKUP($A$5,Daten!$Z$2:$AC$10,3,0)),\"\",HLOOKUP($A$5,Daten!$Z$2:$AC$10,3,0))","v":""}]
[3,{"$f":"IF(ISERROR(HLOOKUP($A$5,Daten!$Z$2:$AC$10,4,0)),\"\",HLOOKUP($A$5,Daten!$Z$2:$AC$10,4,0))","v":""}]
[4,{"$f":"IF(ISERROR(HLOOKUP($A$5,Daten!$Z$2:$AC$10,5,0)),\"\",HLOOKUP($A$5,Daten!$Z$2:$AC$10,5,0))","v":""}]
[5,{"$f":"IF(ISERROR(HLOOKUP($A$5,Daten!$Z$2:$AC$10,6,0)),\"\",HLOOKUP($A$5,Daten!$Z$2:$AC$10,6,0))","v":""}]
[6,{"$f":"IF(ISERROR(HLOOKUP($A$5,Daten!$Z$2:$AC$10,7,0)),\"\",HLOOKUP($A$5,Daten!$Z$2:$AC$10,7,0))","v":""}]
[7,{"$f":"IF(ISERROR(HLOOKUP($A$5,Daten!$Z$2:$AC$10,8,0)),\"\",HLOOKUP($A$5,Daten!$Z$2:$AC$10,8,0))","v":""}]
[8,{"$f":"IF(ISERROR(HLOOKUP($A$5,Daten!$Z$2:$AC$10,9,0)),\"\",HLOOKUP($A$5,Daten!$Z$2:$AC$10,9,0))","v":""}]
["Emissionsmessung"]
["Stoff",null,"Emissions-grenzwert","gemessener \nWert","Einheit","Status","Kommentar"]
[]
[null,null,null,null,null,{"$f":"IF(D18=\"\",\"\",IF(C18=\"\",\"\",IF(D18>C18,\"überschritten\",IF(D18<=C18,\"OK\",\"\"))))","v":""}]
[null,null,null,null,null,{"$f":"IF(D19=\"\",\"\",IF(C19=\"\",\"\",IF(D19>C19,\"überschritten\",IF(D19<=C19,\"OK\",\"\"))))","v":""}]
[null,null,null,null,null,""]
[null,null,null,null,null,""]
[null,null,null,null,null,""]
[null,null,null,null,null,""]
[null,null,null,null,null,""]
[null,null,null,null,null,""]
[null,null,null,null,null,""]
[null,null,null,null,null,""]
[]
["Prüfpunkte",null,null,null,"Inhalt",null,null,"Einheit"]
["Modul:"]
["Datum der durchgeführten Messung:"]
["nächste Emissionsmessung:"]
["die Durchführung der Messung erfolgte durch:"]
["Datum der durchgeführten Wartung:"]
["nächste Wartung:"]
["Betriebsstunden:"]
["abgenommene elektrische Energie:"]
["abgenommene thermische Energie:"]
["produzierte Biomethanmenge:"]
["Kommentar:"]
[]
[]
[]
[]
[]
[]
[]
[]
[]
["Biogasverwertung"]
[]
["Kontrollpunkte:"]
[]
[]
["Nr.","Inhalt",null,null,null,null,null,"Status"]
[1,{"$f":"IF(ISERROR(HLOOKUP($A$54,Daten!$Z$2:$AC$10,2,0)),\"\",HLOOKUP($A$54,Daten!$Z$2:$AC$10,2,0))","v":""}]
[2,{"$f":"IF(ISERROR(HLOOKUP($A$54,Daten!$Z$2:$AC$10,3,0)),\"\",HLOOKUP($A$54,Daten!$Z$2:$AC$10,3,0))","v":""}]
[3,{"$f":"IF(ISERROR(HLOOKUP($A$54,Daten!$Z$2:$AC$10,4,0)),\"\",HLOOKUP($A$54,Daten!$Z$2:$AC$10,4,0))","v":""}]
[4,{"$f":"IF(ISERROR(HLOOKUP($A$54,Daten!$Z$2:$AC$10,5,0)),\"\",HLOOKUP($A$54,Daten!$Z$2:$AC$10,5,0))","v":""}]
[5,{"$f":"IF(ISERROR(HLOOKUP($A$54,Daten!$Z$2:$AC$10,6,0)),\"\",HLOOKUP($A$54,Daten!$Z$2:$AC$10,6,0))","v":""}]
[6,{"$f":"IF(ISERROR(HLOOKUP($A$54,Daten!$Z$2:$AC$10,7,0)),\"\",HLOOKUP($A$54,Daten!$Z$2:$AC$10,7,0))","v":""}]
[7,{"$f":"IF(ISERROR(HLOOKUP($A$54,Daten!$Z$2:$AC$10,8,0)),\"\",HLOOKUP($A$54,Daten!$Z$2:$AC$10,8,0))","v":""}]
[8,{"$f":"IF(ISERROR(HLOOKUP($A$54,Daten!$Z$2:$AC$10,9,0)),\"\",HLOOKUP($A$54,Daten!$Z$2:$AC$10,9,0))","v":""}]
["Emissionsmessung"]
["Stoff",null,"Emissions-grenzwert","gemessener \nWert","Einheit","Status","Kommentar"]
[null,null,null,null,null,{"$f":"IF(D66=\"\",\"\",IF(C66=\"\",\"\",IF(D66>C66,\"überschritten\",IF(D66<=C66,\"OK\",\"\"))))","v":""}]
[null,null,null,null,null,""]
[null,null,null,null,null,""]
[null,null,null,null,null,""]
[null,null,null,null,null,""]
[null,null,null,null,null,""]
[null,null,null,null,null,""]
[null,null,null,null,null,""]
[null,null,null,null,null,""]
[null,null,null,null,null,""]
[]
["Prüfpunkte",null,null,null,"Inhalt",null,null,"Einheit"]
["Modul:"]
["Datum der durchgeführten Messung:"]
["nächste Emissionsmessung:"]
["die Durchführung der Messung erfolgte durch:"]
["Datum der durchgeführten Wartung:"]
["nächste Wartung:"]
["Betriebsstunden:"]
["abgenommene elektrische Energie:"]
["abgenommene thermische Energie:"]
["produzierte Biomethanmenge:"]
["Kommentar:"]
[]
[]
[]
[]
[]
[]
[]
[]
[]
["Biogasverwertung"]
[]
["Kontrollpunkte:"]
[]
[]
["Nr.","Inhalt",null,null,null,null,null,"Status"]
[1,{"$f":"IF(ISERROR(HLOOKUP($A$102,Daten!$Z$2:$AC$10,2,0)),\"\",HLOOKUP($A$102,Daten!$Z$2:$AC$10,2,0))","v":""}]
[2,{"$f":"IF(ISERROR(HLOOKUP($A$102,Daten!$Z$2:$AC$10,3,0)),\"\",HLOOKUP($A$102,Daten!$Z$2:$AC$10,3,0))","v":""}]
[3,{"$f":"IF(ISERROR(HLOOKUP($A$102,Daten!$Z$2:$AC$10,4,0)),\"\",HLOOKUP($A$102,Daten!$Z$2:$AC$10,4,0))","v":""}]
[4,{"$f":"IF(ISERROR(HLOOKUP($A$102,Daten!$Z$2:$AC$10,5,0)),\"\",HLOOKUP($A$102,Daten!$Z$2:$AC$10,5,0))","v":""}]
[5,{"$f":"IF(ISERROR(HLOOKUP($A$102,Daten!$Z$2:$AC$10,6,0)),\"\",HLOOKUP($A$102,Daten!$Z$2:$AC$10,6,0))","v":""}]
[6,{"$f":"IF(ISERROR(HLOOKUP($A$102,Daten!$Z$2:$AC$10,7,0)),\"\",HLOOKUP($A$102,Daten!$Z$2:$AC$10,7,0))","v":""}]
[7,{"$f":"IF(ISERROR(HLOOKUP($A$102,Daten!$Z$2:$AC$10,8,0)),\"\",HLOOKUP($A$102,Daten!$Z$2:$AC$10,8,0))","v":""}]
[8,{"$f":"IF(ISERROR(HLOOKUP($A$102,Daten!$Z$2:$AC$10,9,0)),\"\",HLOOKUP($A$102,Daten!$Z$2:$AC$10,9,0))","v":""}]
["Emissionsmessung"]
["Stoff",null,"Emissions-grenzwert","gemessener \nWert","Einheit","Status","Kommentar"]
[null,null,null,null,null,{"$f":"IF(D114=\"\",\"\",IF(C114=\"\",\"\",IF(D114>C114,\"überschritten\",IF(D114<=C114,\"OK\",\"\"))))","v":""}]
[null,null,null,null,null,{"$f":"IF(D115=\"\",\"\",IF(C115=\"\",\"\",IF(D115>C115,\"überschritten\",IF(D115<=C115,\"OK\",\"\"))))","v":""}]
[null,null,null,null,null,""]
[null,null,null,null,null,""]
[null,null,null,null,null,""]
[null,null,null,null,null,""]
[null,null,null,null,null,""]
[null,null,null,null,null,""]
[null,null,null,null,null,""]
[null,null,null,null,null,""]
[]
["Prüfpunkte",null,null,null,"Inhalt",null,null,"Einheit"]
["Modul:"]
["Datum der durchgeführten Messung:"]
["nächste Emissionsmessung:"]
["die Durchführung der Messung erfolgte durch:"]
["Datum der durchgeführten Wartung:"]
["nächste Wartung:"]
["Betriebsstunden:"]
["abgenommene elektrische Energie:"]
["abgenommene thermische Energie:"]
["produzierte Biomethanmenge:"]
["Kommentar:"]
[]
[]
[]
[]
[]
[]
[]
[]
[]
["Biogasverwertung"]
[]
["Kontrollpunkte:"]
[]
[]
["Nr.","Inhalt",null,null,null,null,null,"Status"]
[1,{"$f":"IF(ISERROR(HLOOKUP($A$150,Daten!$Z$2:$AC$10,2,0)),\"\",HLOOKUP($A$150,Daten!$Z$2:$AC$10,2,0))","v":""}]
[2,{"$f":"IF(ISERROR(HLOOKUP($A$150,Daten!$Z$2:$AC$10,3,0)),\"\",HLOOKUP($A$150,Daten!$Z$2:$AC$10,3,0))","v":""}]
[3,{"$f":"IF(ISERROR(HLOOKUP($A$150,Daten!$Z$2:$AC$10,4,0)),\"\",HLOOKUP($A$150,Daten!$Z$2:$AC$10,4,0))","v":""}]
[4,{"$f":"IF(ISERROR(HLOOKUP($A$150,Daten!$Z$2:$AC$10,5,0)),\"\",HLOOKUP($A$150,Daten!$Z$2:$AC$10,5,0))","v":""}]
[5,{"$f":"IF(ISERROR(HLOOKUP($A$150,Daten!$Z$2:$AC$10,6,0)),\"\",HLOOKUP($A$150,Daten!$Z$2:$AC$10,6,0))","v":""}]
[6]
[7,{"$f":"IF(ISERROR(HLOOKUP($A$150,Daten!$Z$2:$AC$10,8,0)),\"\",HLOOKUP($A$150,Daten!$Z$2:$AC$10,8,0))","v":""}]
[8,{"$f":"IF(ISERROR(HLOOKUP($A$150,Daten!$Z$2:$AC$10,9,0)),\"\",HLOOKUP($A$150,Daten!$Z$2:$AC$10,9,0))","v":""}]
["Emissionsmessung"]
["Stoff",null,"Emissions-grenzwert","gemessener \nWert","Einheit","Status","Kommentar"]
[null,null,null,null,null,{"$f":"IF(D162=\"\",\"\",IF(C162=\"\",\"\",IF(D162>C162,\"überschritten\",IF(D162<=C162,\"OK\",\"\"))))","v":""}]
[null,null,null,null,null,{"$f":"IF(D163=\"\",\"\",IF(C163=\"\",\"\",IF(D163>C163,\"überschritten\",IF(D163<=C163,\"OK\",\"\"))))","v":""}]
[null,null,null,null,null,""]
[null,null,null,null,null,""]
[null,null,null,null,null,""]
[null,null,null,null,null,""]
[null,null,null,null,null,""]
[null,null,null,null,null,""]
[null,null,null,null,null,""]
[null,null,null,null,null,""]
[]
["Prüfpunkte",null,null,null,"Inhalt",null,null,"Einheit"]
["Modul:"]
["Datum der durchgeführten Messung:"]
["nächste Emissionsmessung:"]
["die Durchführung der Messung erfolgte durch:"]
["Datum der durchgeführten Wartung:"]
["nächste Wartung:"]
["Betriebsstunden:"]
["abgenommene elektrische Energie:"]
["abgenommene thermische Energie:"]
["produzierte Biomethanmenge:"]
["Kommentar:"]

{"sheet":"Sicherheitseinrichtungen","index":7,"n_rows":85,"n_cols":8,"rows_kept":85,"cut":false,"hidden":false,"merged":[[80,1,80,6],[81,1,81,6],[82,1,82,6],[49,0,49,7],[75,1,75,6],[76,1,76,6],[77,1,77,6],[78,1,78,6],[79,1,79,6],[70,1,70,6],[71,1,71,6],[72,1,72,6],[73,0,73,7],[74,1,74,6],[65,1,65,6],[66,1,66,6],[67,1,67,6],[68,1,68,6],[69,1,69,6],[60,1,60,6],[61,1,61,6],[62,1,62,6],[63,0,63,7],[64,1,64,6],[55,1,55,6],[56,1,56,6],[57,1,57,6],[58,1,58,6],[59,1,59,6],[29,1,29,6],[30,1,30,6],[31,1,31,6],[32,1,32,6],[33,1,33,6],[53,0,53,7],[54,1,54,6],[84,0,84,1],[15,1,15,6],[16,1,16,6],[17,1,17,6],[18,1,18,6],[19,1,19,6],[20,1,20,6],[21,1,21,6],[22,1,22,6],[23,1,23,6],[35,0,35,1],[24,0,24,7],[25,1,25,6],[26,1,26,6],[0,0,0,7],[4,0,4,7],[5,1,5,6],[14,0,14,7],[51,0,51,1],[2,0,2,1],[6,1,6,6],[7,1,7,6],[8,1,8,6],[9,1,9,6],[10,1,10,6],[11,1,11,6],[12,1,12,6],[13,1,13,6],[27,1,27,6],[28,1,28,6]]}
["Sicherheitseinrichtungen"]
[]
["Kontrollpunkte:"]
[]
[]
["Nr.","Inhalt",null,null,null,null,null,"Status"]
[1,{"$f":"IF(ISERROR(HLOOKUP($A$5,Daten!$AE$2:$AI$10,2,0)),\"\",HLOOKUP($A$5,Daten!$AE$2:$AI$10,2,0))","v":""}]
[2,{"$f":"IF(ISERROR(HLOOKUP($A$5,Daten!$AE$2:$AI$10,3,0)),\"\",HLOOKUP($A$5,Daten!$AE$2:$AI$10,3,0))","v":""}]
[3,{"$f":"IF(ISERROR(HLOOKUP($A$5,Daten!$AE$2:$AI$10,4,0)),\"\",HLOOKUP($A$5,Daten!$AE$2:$AI$10,4,0))","v":""}]
[4,{"$f":"IF(ISERROR(HLOOKUP($A$5,Daten!$AE$2:$AI$10,5,0)),\"\",HLOOKUP($A$5,Daten!$AE$2:$AI$10,5,0))","v":""}]
[5,{"$f":"IF(ISERROR(HLOOKUP($A$5,Daten!$AE$2:$AI$10,6,0)),\"\",HLOOKUP($A$5,Daten!$AE$2:$AI$10,6,0))","v":""}]
[6,{"$f":"IF(ISERROR(HLOOKUP($A$5,Daten!$AE$2:$AI$10,7,0)),\"\",HLOOKUP($A$5,Daten!$AE$2:$AI$10,7,0))","v":""}]
[7,{"$f":"IF(ISERROR(HLOOKUP($A$5,Daten!$AE$2:$AI$10,8,0)),\"\",HLOOKUP($A$5,Daten!$AE$2:$AI$10,8,0))","v":""}]
[8,{"$f":"IF(ISERROR(HLOOKUP($A$5,Daten!$AE$2:$AI$10,9,0)),\"\",HLOOKUP($A$5,Daten!$AE$2:$AI$10,9,0))","v":""}]
[]
["Nr.","Inhalt",null,null,null,null,null,"Status"]
[1,{"$f":"IF(ISERROR(HLOOKUP($A$15,Daten!$AE$2:$AI$10,2,0)),\"\",HLOOKUP($A$15,Daten!$AE$2:$AI$10,2,0))","v":""}]
[2,{"$f":"IF(ISERROR(HLOOKUP($A$15,Daten!$AE$2:$AI$10,3,0)),\"\",HLOOKUP($A$15,Daten!$AE$2:$AI$10,3,0))","v":""}]
[3,{"$f":"IF(ISERROR(HLOOKUP($A$15,Daten!$AE$2:$AI$10,4,0)),\"\",HLOOKUP($A$15,Daten!$AE$2:$AI$10,4,0))","v":""}]
[4,{"$f":"IF(ISERROR(HLOOKUP($A$15,Daten!$AE$2:$AI$10,5,0)),\"\",HLOOKUP($A$15,Daten!$AE$2:$AI$10,5,0))","v":""}]
[5,{"$f":"IF(ISERROR(HLOOKUP($A$15,Daten!$AE$2:$AI$10,6,0)),\"\",HLOOKUP($A$15,Daten!$AE$2:$AI$10,6,0))","v":""}]
[6,{"$f":"IF(ISERROR(HLOOKUP($A$15,Daten!$AE$2:$AI$10,7,0)),\"\",HLOOKUP($A$15,Daten!$AE$2:$AI$10,7,0))","v":""}]
[7,{"$f":"IF(ISERROR(HLOOKUP($A$15,Daten!$AE$2:$AI$10,8,0)),\"\",HLOOKUP($A$15,Daten!$AE$2:$AI$10,8,0))","v":""}]
[8,{"$f":"IF(ISERROR(HLOOKUP($A$15,Daten!$AE$2:$AI$10,9,0)),\"\",HLOOKUP($A$15,Daten!$AE$2:$AI$10,9,0))","v":""}]
[]
["Nr.","Inhalt",null,null,null,null,null,"Status"]
[1,{"$f":"IF(ISERROR(HLOOKUP($A$25,Daten!$AE$2:$AI$10,2,0)),\"\",HLOOKUP($A$25,Daten!$AE$2:$AI$10,2,0))","v":""}]
[2,{"$f":"IF(ISERROR(HLOOKUP($A$25,Daten!$AE$2:$AI$10,3,0)),\"\",HLOOKUP($A$25,Daten!$AE$2:$AI$10,3,0))","v":""}]
[3,{"$f":"IF(ISERROR(HLOOKUP($A$25,Daten!$AE$2:$AI$10,4,0)),\"\",HLOOKUP($A$25,Daten!$AE$2:$AI$10,4,0))","v":""}]
[4,{"$f":"IF(ISERROR(HLOOKUP($A$25,Daten!$AE$2:$AI$10,5,0)),\"\",HLOOKUP($A$25,Daten!$AE$2:$AI$10,5,0))","v":""}]
[5,{"$f":"IF(ISERROR(HLOOKUP($A$25,Daten!$AE$2:$AI$10,6,0)),\"\",HLOOKUP($A$25,Daten!$AE$2:$AI$10,6,0))","v":""}]
[6,{"$f":"IF(ISERROR(HLOOKUP($A$25,Daten!$AE$2:$AI$10,7,0)),\"\",HLOOKUP($A$25,Daten!$AE$2:$AI$10,7,0))","v":""}]
[7,{"$f":"IF(ISERROR(HLOOKUP($A$25,Daten!$AE$2:$AI$10,8,0)),\"\",HLOOKUP($A$25,Daten!$AE$2:$AI$10,8,0))","v":""}]
[8,{"$f":"IF(ISERROR(HLOOKUP($A$25,Daten!$AE$2:$AI$10,9,0)),\"\",HLOOKUP($A$25,Daten!$AE$2:$AI$10,9,0))","v":""}]
[]
["Kommentar:"]
[]
[]
[]
[]
[]
[]
[]
[]
[]
[]
[]
[]
[]
["Sicherheitseinrichtungen"]
[]
["Kontrollpunkte:"]
[]
[]
["Nr.","Inhalt",null,null,null,null,null,"Status"]
[1,{"$f":"IF(ISERROR(HLOOKUP($A$54,Daten!$AE$2:$AI$10,2,0)),\"\",HLOOKUP($A$54,Daten!$AE$2:$AI$10,2,0))","v":""}]
[2,{"$f":"IF(ISERROR(HLOOKUP($A$54,Daten!$AE$2:$AI$10,3,0)),\"\",HLOOKUP($A$54,Daten!$AE$2:$AI$10,3,0))","v":""}]
[3,{"$f":"IF(ISERROR(HLOOKUP($A$54,Daten!$AE$2:$AI$10,4,0)),\"\",HLOOKUP($A$54,Daten!$AE$2:$AI$10,4,0))","v":""}]
[4,{"$f":"IF(ISERROR(HLOOKUP($A$54,Daten!$AE$2:$AI$10,5,0)),\"\",HLOOKUP($A$54,Daten!$AE$2:$AI$10,5,0))","v":""}]
[5,{"$f":"IF(ISERROR(HLOOKUP($A$54,Daten!$AE$2:$AI$10,6,0)),\"\",HLOOKUP($A$54,Daten!$AE$2:$AI$10,6,0))","v":""}]
[6,{"$f":"IF(ISERROR(HLOOKUP($A$54,Daten!$AE$2:$AI$10,7,0)),\"\",HLOOKUP($A$54,Daten!$AE$2:$AI$10,7,0))","v":""}]
[7,{"$f":"IF(ISERROR(HLOOKUP($A$54,Daten!$AE$2:$AI$10,8,0)),\"\",HLOOKUP($A$54,Daten!$AE$2:$AI$10,8,0))","v":""}]
[8,{"$f":"IF(ISERROR(HLOOKUP($A$54,Daten!$AE$2:$AI$10,9,0)),\"\",HLOOKUP($A$54,Daten!$AE$2:$AI$10,9,0))","v":""}]
[]
["Nr.","Inhalt",null,null,null,null,null,"Status"]
[1,{"$f":"IF(ISERROR(HLOOKUP($A$64,Daten!$AE$2:$AI$10,2,0)),\"\",HLOOKUP($A$64,Daten!$AE$2:$AI$10,2,0))","v":""}]
[2,{"$f":"IF(ISERROR(HLOOKUP($A$64,Daten!$AE$2:$AI$10,3,0)),\"\",HLOOKUP($A$64,Daten!$AE$2:$AI$10,3,0))","v":""}]
[3,{"$f":"IF(ISERROR(HLOOKUP($A$64,Daten!$AE$2:$AI$10,4,0)),\"\",HLOOKUP($A$64,Daten!$AE$2:$AI$10,4,0))","v":""}]
[4,{"$f":"IF(ISERROR(HLOOKUP($A$64,Daten!$AE$2:$AI$10,5,0)),\"\",HLOOKUP($A$64,Daten!$AE$2:$AI$10,5,0))","v":""}]
[5,{"$f":"IF(ISERROR(HLOOKUP($A$64,Daten!$AE$2:$AI$10,6,0)),\"\",HLOOKUP($A$64,Daten!$AE$2:$AI$10,6,0))","v":""}]
[6,{"$f":"IF(ISERROR(HLOOKUP($A$64,Daten!$AE$2:$AI$10,7,0)),\"\",HLOOKUP($A$64,Daten!$AE$2:$AI$10,7,0))","v":""}]
[7,{"$f":"IF(ISERROR(HLOOKUP($A$64,Daten!$AE$2:$AI$10,8,0)),\"\",HLOOKUP($A$64,Daten!$AE$2:$AI$10,8,0))","v":""}]
[8,{"$f":"IF(ISERROR(HLOOKUP($A$64,Daten!$AE$2:$AI$10,9,0)),\"\",HLOOKUP($A$64,Daten!$AE$2:$AI$10,9,0))","v":""}]
[]
["Nr.","Inhalt",null,null,null,null,null,"Status"]
[1,{"$f":"IF(ISERROR(HLOOKUP($A$74,Daten!$AE$2:$AI$10,2,0)),\"\",HLOOKUP($A$74,Daten!$AE$2:$AI$10,2,0))","v":""}]
[2,{"$f":"IF(ISERROR(HLOOKUP($A$74,Daten!$AE$2:$AI$10,3,0)),\"\",HLOOKUP($A$74,Daten!$AE$2:$AI$10,3,0))","v":""}]
[3,{"$f":"IF(ISERROR(HLOOKUP($A$74,Daten!$AE$2:$AI$10,4,0)),\"\",HLOOKUP($A$74,Daten!$AE$2:$AI$10,4,0))","v":""}]
[4,{"$f":"IF(ISERROR(HLOOKUP($A$74,Daten!$AE$2:$AI$10,5,0)),\"\",HLOOKUP($A$74,Daten!$AE$2:$AI$10,5,0))","v":""}]
[5,{"$f":"IF(ISERROR(HLOOKUP($A$74,Daten!$AE$2:$AI$10,6,0)),\"\",HLOOKUP($A$74,Daten!$AE$2:$AI$10,6,0))","v":""}]
[6,{"$f":"IF(ISERROR(HLOOKUP($A$74,Daten!$AE$2:$AI$10,7,0)),\"\",HLOOKUP($A$74,Daten!$AE$2:$AI$10,7,0))","v":""}]
[7,{"$f":"IF(ISERROR(HLOOKUP($A$74,Daten!$AE$2:$AI$10,8,0)),\"\",HLOOKUP($A$74,Daten!$AE$2:$AI$10,8,0))","v":""}]
[8,{"$f":"IF(ISERROR(HLOOKUP($A$74,Daten!$AE$2:$AI$10,9,0)),\"\",HLOOKUP($A$74,Daten!$AE$2:$AI$10,9,0))","v":""}]
[]
["Kommentar:"]

{"sheet":"Gärrestaufbereitung","index":8,"n_rows":28,"n_cols":8,"rows_kept":28,"cut":false,"hidden":false,"merged":[[27,0,27,1],[22,0,22,1],[23,0,23,1],[24,0,24,1],[25,0,25,1],[13,1,13,6],[21,6,21,7],[14,0,14,7],[17,0,17,1],[18,0,18,1],[19,0,19,1],[20,0,20,1],[15,6,15,7],[15,0,15,1],[25,6,25,7],[16,6,16,7],[17,6,17,7],[18,6,18,7],[19,6,19,7],[20,6,20,7],[2,0,2,1],[0,0,0,7],[22,6,22,7],[23,6,23,7],[24,6,24,7],[21,0,21,1],[16,0,16,1],[4,0,4,7],[5,1,5,6],[6,1,6,6],[7,1,7,6],[8,1,8,6],[9,1,9,6],[10,1,10,6],[11,1,11,6],[12,1,12,6]]}
["Gärrestaufbereitung"]
[]
["Kontrollpunkte:"]
[]
[]
["Nr.","Inhalt",null,null,null,null,null,"Status"]
[1,{"$f":"IF(ISERROR(HLOOKUP($A$5,Daten!$AK$2:$AM$10,2,0)),\"\",HLOOKUP($A$5,Daten!$AK$2:$AM$10,2,0))","v":""}]
[2,{"$f":"IF(ISERROR(HLOOKUP($A$5,Daten!$AK$2:$AM$10,3,0)),\"\",HLOOKUP($A$5,Daten!$AK$2:$AM$10,3,0))","v":""}]
[3,{"$f":"IF(ISERROR(HLOOKUP($A$5,Daten!$AK$2:$AM$10,4,0)),\"\",HLOOKUP($A$5,Daten!$AK$2:$AM$10,4,0))","v":""}]
[4,{"$f":"IF(ISERROR(HLOOKUP($A$5,Daten!$AK$2:$AM$10,5,0)),\"\",HLOOKUP($A$5,Daten!$AK$2:$AM$10,5,0))","v":""}]
[5,{"$f":"IF(ISERROR(HLOOKUP($A$5,Daten!$AK$2:$AM$10,6,0)),\"\",HLOOKUP($A$5,Daten!$AK$2:$AM$10,6,0))","v":""}]
[6,{"$f":"IF(ISERROR(HLOOKUP($A$5,Daten!$AK$2:$AM$10,7,0)),\"\",HLOOKUP($A$5,Daten!$AK$2:$AM$10,7,0))","v":""}]
[7,{"$f":"IF(ISERROR(HLOOKUP($A$5,Daten!$AK$2:$AM$10,8,0)),\"\",HLOOKUP($A$5,Daten!$AK$2:$AM$10,8,0))","v":""}]
[8,{"$f":"IF(ISERROR(HLOOKUP($A$5,Daten!$AK$2:$AM$10,9,0)),\"\",HLOOKUP($A$5,Daten!$AK$2:$AM$10,9,0))","v":""}]
["Emissionsmessung"]
["Stoff",null,"Emissions-grenzwert","gemessener \nWert","Einheit","Status","Kommentar"]
[null,null,null,null,null,{"$f":"IF(D17=\"\",\"\",IF(C17=\"\",\"\",IF(D17>C17,\"überschritten\",IF(D17<=C17,\"OK\",\"\"))))","v":""}]
[null,null,null,null,null,{"$f":"IF(D18=\"\",\"\",IF(C18=\"\",\"\",IF(D18>C18,\"überschritten\",IF(D18<=C18,\"OK\",\"\"))))","v":""}]
[null,null,null,null,null,""]
[null,null,null,null,null,""]
[null,null,null,null,null,""]
[null,null,null,null,null,""]
[null,null,null,null,null,""]
[null,null,null,null,null,""]
[null,null,null,null,null,""]
[null,null,null,null,null,""]
[]
["Kommentar:"]

{"sheet":"Gärrestlagerung und -abtransp.","index":9,"n_rows":35,"n_cols":8,"rows_kept":35,"cut":false,"hidden":false,"merged":[[13,1,13,6],[14,1,14,6],[15,1,15,6],[8,1,8,6],[9,1,9,6],[10,1,10,6],[11,1,11,6],[12,1,12,6],[31,1,31,6],[32,1,32,6],[23,0,23,7],[24,1,24,6],[25,1,25,6],[26,1,26,6],[27,1,27,6],[0,0,0,7],[19,0,19,7],[21,0,21,1],[17,2,17,3],[34,0,34,1],[2,0,2,1],[6,0,6,7],[7,1,7,6],[3,3,3,5],[5,3,5,5],[2,3,2,6],[5,0,5,1],[4,3,4,5],[28,1,28,6],[29,1,29,6],[30,1,30,6]]}
["Gärrestlagerung"]
[]
["Kontrollpunkte:",null,null,"Bestimmung der hydraulischen Verweilzeit"]
[null,null,null,"Reaktorvolumen [m³]:"]
[null,null,null,"täglich zugeführte Substratmenge [m³/d]:",null,null,{"$f":"SUM('Substrateins. und -anlief.'!E12:E21)","v":0}]
["nur Gülleeinsatz?:",null,null,"hydraulische Verweilzeit [d]:",null,null,{"$f":"IFERROR(G4/G5,0)","v":0}]
[]
["Nr.","Inhalt",null,null,null,null,null,"Status"]
[1,{"$f":"IF(ISERROR(HLOOKUP($A$7,Daten!$AP$2:$AR$10,2,0)),\"\",HLOOKUP($A$7,Daten!$AP$2:$AR$10,2,0))","v":""}]
[2,{"$f":"IF(ISERROR(HLOOKUP($A$7,Daten!$AP$2:$AR$10,3,0)),\"\",HLOOKUP($A$7,Daten!$AP$2:$AR$10,3,0))","v":""}]
[3,{"$f":"IF(ISERROR(HLOOKUP($A$7,Daten!$AP$2:$AR$10,4,0)),\"\",HLOOKUP($A$7,Daten!$AP$2:$AR$10,4,0))","v":""}]
[4,{"$f":"IF(ISERROR(HLOOKUP($A$7,Daten!$AP$2:$AR$10,5,0)),\"\",HLOOKUP($A$7,Daten!$AP$2:$AR$10,5,0))","v":""}]
[5,{"$f":"IF(ISERROR(HLOOKUP($A$7,Daten!$AP$2:$AR$10,6,0)),\"\",HLOOKUP($A$7,Daten!$AP$2:$AR$10,6,0))","v":""}]
[6,{"$f":"IF(ISERROR(HLOOKUP($A$7,Daten!$AP$2:$AR$10,7,0)),\"\",HLOOKUP($A$7,Daten!$AP$2:$AR$10,7,0))","v":""}]
[7,{"$f":"IF(ISERROR(HLOOKUP($A$7,Daten!$AP$2:$AR$10,8,0)),\"\",HLOOKUP($A$7,Daten!$AP$2:$AR$10,8,0))","v":""}]
[8,{"$f":"IF(ISERROR(HLOOKUP($A$7,Daten!$AP$2:$AR$10,9,0)),\"\",HLOOKUP($A$7,Daten!$AP$2:$AR$10,9,0))","v":""}]
[null,null,null,null,"Grenzwert","gemessener \nWert","Status"]
[null,null,"Restmethanbildung",null,1.4999999999999999E-2,null,{"$f":"IF(F18=\"\",\"\",IF(E18=\"\",\"\",IF(F18>E18,\"überschritten\",IF(F18<=E18,\"OK\",\"\"))))","v":""}]
[]
["Gärrestabtransport"]
[]
["Kontrollpunkte:"]
[]
["Gärrestabtransport"]
["Nr.","Inhalt",null,null,null,null,null,"Status"]
[1,"Befestigung und Sauberkeit der Umfüllstation"]
[2,"Transport der Gärreste bei Möglichkeit in geschlossenen Behältern"]
[3,"Befeuchtung der Fahrwege, bei Gefahr von hohen Staubemissionen durch befestigte Fahrwege"]
[4,"Anzahl und Zeit der Abtransportvorgänge im Vergleich zu den genehmigten (optional)"]
[5,{"$f":"IF(ISERROR(HLOOKUP($A$24,Daten!$AT$2:$AT$10,6,0)),\"\",HLOOKUP($A$24,Daten!$AT$2:$AT$10,6,0))","v":""}]
[6,{"$f":"IF(ISERROR(HLOOKUP($A$24,Daten!$AT$2:$AT$10,7,0)),\"\",HLOOKUP($A$24,Daten!$AT$2:$AT$10,7,0))","v":""}]
[7,{"$f":"IF(ISERROR(HLOOKUP($A$24,Daten!$AT$2:$AT$10,8,0)),\"\",HLOOKUP($A$24,Daten!$AT$2:$AT$10,8,0))","v":""}]
[8,{"$f":"IF(ISERROR(HLOOKUP($A$24,Daten!$AT$2:$AT$10,9,0)),\"\",HLOOKUP($A$24,Daten!$AT$2:$AT$10,9,0))","v":""}]
[]
["Kommentar:"]

{"sheet":"Zusammenfassung","index":10,"n_rows":3,"n_cols":1,"rows_kept":3,"cut":false,"hidden":false,"merged":[[0,0,0,10]]}
["Zusammenfassung"]
[]
["Nicht erfüllte Kontrollpunkte:"]

{"sheet":"zusätzliche Information","index":11,"n_rows":31,"n_cols":23,"rows_kept":31,"cut":false,"hidden":false,"merged":[[0,17,0,23],[7,8,7,12],[6,13,6,16],[29,10,29,11],[30,10,30,11],[23,8,23,12],[22,8,22,12],[0,8,0,12],[26,13,27,16],[23,13,23,16],[0,13,0,16],[26,8,27,12],[24,10,24,11],[25,10,25,11],[18,10,18,11],[21,10,21,11],[2,0,2,1],[0,0,0,7],[8,0,8,1],[13,0,13,1],[18,0,18,1],[27,1,27,2],[6,18,6,19],[19,10,19,11],[20,10,20,11],[8,10,8,11],[11,10,11,11],[14,10,14,11],[16,10,16,11]]}
["zusätzliche Informationen",null,null,null,null,null,null,null,"zusätzliche Informationen",null,null,null,null,"zusätzliche Informationen",null,null,null,"zusätzliche Informationen"]
[]
["Substratanlieferung:",null,null,null,null,null,null,null,"Biogasverwertung:",null,null,null,null,null,null,null,null,"Sicherheitseinrichtungen:"]
[]
["Regelwerk","Kapitel","Seite","Regelwerkart","Fassung","Sonstiges",null,null,null,null,null,null,null,null,null,null,null,"Regelwerk","Kapitel","Seite","Regelwerkart","Fassung","Sonstiges"]
["TA - Luft","5.2.3.3",null,"allgemeine Verwaltungsvorschrift",null,null,null,null,null,null,null,null,null,null,null,null,null,"VDI 3475 Blatt 4","4.3.4.3; 4.3.4.7; 4.3.4.8",null,"VDI-Richtlinie","2010-08-01","bestätigt am 01.10.2014"]
["VDI 3475 Blatt 4","4.3.1",null,"VDI-Richtlinie","2010-08-01","bestätigt am 01.10.2014",null,null,null,null,null,null,null,"allgemeine Emissionsgrenzwerte nach der TA - Luft Nr. 5.2 (bspw. für die Biogasaufbereitung, Gärresttrocknung oder sonstige Abluftreinigung)",null,null,null,"KAS 28 - Merkblatt","gesamtes Dokument",null,"Technische Regel, Merkblatt"]
[null,null,null,null,null,null,null,null,"Emissionsgrenzwerte nach der TA - Luft Nr. 5.4.1.4 und Vollzugsempfehlung Formaldehyd des LAI",null,null,null,null,"Stoff","Charakterisierung","Grenzwert","Einheit"]
["Substratlagerung:",null,null,null,null,null,null,null,"Stoff","Charakterisierung","Emissionsgrenzwerte",null,"Einheit","Gesamtstaub, einschließlich Feinstaub","Massenstrom",0.2,"kg/h","Gärrestaufbereitung:"]
[null,null,null,null,null,null,null,null,null,"Motorcharakterisierung","Gasottomotor","Zündstrahlmotor",null,null,"Massenkonzentration",20,"mg/m³"]
["TA - Luft","5.2.3.5; 5.2.8",null,"allgemeine Verwaltungsvorschrift",null,null,null,null,"Kohlenmonoxid",null,null,null,null,null,"auch bei Einhaltung des Massenstromgrenzwertes max. Massenkonzentration ",15,"g/m³","TA - Luft","5.2",null,"allgemeine Verwaltungsvorschrift"]
["VDI 3475 Blatt 4","4.3.1",null,"VDI-Richtlinie","2010-08-01","bestätigt am 01.10.2014",null,null,null,"≥ 3 MW FWL",0.65,null,"g/m³","organische Stoffe, angegeben als Gesamtkohlenstoff","Massenstrom",0.5,"kg/h"]
[null,null,null,null,null,null,null,null,null,"< 3 MW FWL",1,2,"g/m³",null,"Massenkonzentration",50,"mg/m³"]
["Substrataufbereitung:",null,null,null,null,null,null,null,"Stickstoffoxide",null,null,null,null,"u.U. Mercaptane","Massenstrom",0.1,"kg/h","Gärrestlagerung:"]
[null,null,null,null,null,null,null,null,null,"≥ 3 MW FWL",0.5,null,"g/m³",null,"Massenkonzentration",20,"mg/m³"]
["VDI 3475 Blatt 4","4.3.1",null,"VDI-Richtlinie","2010-08-01","bestätigt am 01.10.2014",null,null,null,"< 3 MW FWL",0.5,1,"g/m³","Schwefelwasserstoff","Massenstrom",15,"g/h","TA - Luft","5.4.9.36",null,"allgemeine Verwaltungsvorschrift"]
[null,null,null,null,null,null,null,null,"Schwefeloxide",null,0.31,null,"g/m³",null,"Massenkonzentration",3,"mg/m³","VDI 3475 Blatt 4","4.3.3","48-50","VDI-Richtlinie","2010-08-01","bestätigt am 01.10.2014"]
[null,null,null,null,null,null,null,null,"Organische Stoffe (Formaldehyd)",null,null,null,null,"Ammoniak","Massenstrom",0.15,"kg/h","Protokoll \"DB - ImSch\"","TOP 4.2",15,"Erlass SMUL - Länderebene [SN]","2014-03-25"]
["Substrateintrag:",null,null,null,null,null,null,null,null,"Neuanlagen jetzt",30,null,"mg/m³",null,"Massenkonzentration",30,"mg/m³","Protokoll \"DB - ImSch\"","TOP 11.10",34,"Erlass SMUL - Länderebene [SN]","2015-11-05"]
[null,null,null,null,null,null,null,null,null,"Altanlagen mit Emissionswerten > 40mg/m³ ab dem 05.02.2018",30,null,"mg/m³","Schwefeldioxid","Massenstrom",1.8,"kg/h"]
["VDI 3475 Blatt 4","4.3.2",null,"VDI-Richtlinie","2010-08-01","bestätigt am 01.10.2014",null,null,null,"Altanlagen mit Emissionswerten ≤ 40mg/m³ ab dem 05.02.2019",30,null,"mg/m³",null,"Massenkonzentration",0.35,"g/m³","Gärrestabtransport:"]
[null,null,null,null,null,null,null,null,null,"Neuanlagen ab 01.01.2020",20,null,"mg/m³","Formaldehyd","Massenstrom",12.5,"g/h"]
[null,null,null,null,null,null,null,null,"Hinweis: Veränderung des Formaldehydbonus ab 01.07.2018 (20 mg/m³)",null,null,null,null,null,"Massenkonzentration",5,"mg/m³","TA - Luft","5.2.3.3",null,"allgemeine Verwaltungsvorschrift"]
["Biogasverwertung:",null,null,null,null,null,null,null,"zusätzlich bei thermischen und katalytischen Nachverbrennungseinrichtungen",null,null,null,null,"zusätzlich bei thermischen und katalytischen Nachverbrennungseinrichtungen",null,null,null,"VDI 3475 Blatt 4","4.3.1",null,"VDI-Richtlinie","2010-08-01","bestätigt am 01.10.2014"]
[null,null,null,null,null,null,null,null,"Kohlenmonoxid",null,0.1,null,"g/m³","Kohlenmonoxid",null,0.1,"g/m³"]
["TA - Luft","5.2",null,"allgemeine Verwaltungsvorschrift",null,null,null,null,"Stickstoffoxide",null,0.1,null,"g/m³","Stickstoffdioxid",null,0.1,"g/m³"]
["VDI 3475 Blatt 4","4.3.4",null,"VDI-Richtlinie",null,null,null,null,"Im Einzelfall können Festlegungen getroffen werden, wenn, die der Nachverbrennung zugeführten Gase nicht geringe Konzentrationen an Stickstoffoxiden oder sonstigen Stickstoffverbindungen enthalten. Dabei dürfen folgende Grenzwerte nicht überschritten werden:",null,null,null,null,"Im Einzelfall können Festlegungen getroffen werden, wenn, die der Nachverbrennung zugeführten Gase nicht geringe Konzentrationen an Stickstoffoxiden oder sonstigen Stickstoffverbindungen enthalten. Dabei dürfen folgende Grenzwerte nicht überschritten werden:"]
["VDI 3896","gesamtes Dokument",null,"VDI-Richtlinie",null,"Biogasaufbereitung"]
[null,null,null,null,null,null,null,null,"Stickstoffdioxid",null,null,null,null,"Stickstoffdioxid"]
[null,null,null,null,null,null,null,null,null,"Massenstrom",1.8,null,"kg/h",null,"Massenstrom",1.8,"kg/h"]
[null,null,null,null,null,null,null,null,null,"Massenkonzentration",0.35,null,"g/m³",null,"Massenkonzentration",0.35,"g/m³"]

{"sheet":"Hilfe","index":12,"n_rows":35,"n_cols":2,"rows_kept":35,"cut":false,"hidden":false,"merged":[[0,0,0,1]]}
["Hilfe"]
[]
["Zweck","Die Checkliste dient der Unterstützung der Mitarbeiter von Überwachungsbehörden bei Überwachung von genehmigungsbedürftigen Biogasanlagen."]
[]
["Aufbau","Die Checkliste ist im Seitenmodus aufgebaut. Eine Seite im Seitenlayout im Arbeitsblatt entspricht auch einer gedruckten Seite. Die Reihenfolge der Arbeitsblätter wurde dem typischen Substratverlauf in einer Biogasanlage angelehnt. "]
[]
["Bedienhinweise"]
["Allgemein:","Bei der Arbeit mit der Checkliste empfiehlt es sich die Originaldatei der Checkliste aufzuheben und für die jeweilige Biogasanlage eine neue Checkliste mit 'Speichern unter' abzuspeichern. Denn, beim ausfüllen der Checkliste können Formeln überschrieben werden, welche für die aktuelle Anlagen nicht relevant sind, jedoch für eine andere Anlage ausschlaggebend sein können."]
[]
["Dropdown-Auswahllisten:","Im gesamten Excel Dokument sind Dropdown-Auswahllisten verteilt um eine Auswahl treffen zu können. Unter Umständen kann es, aufgrund von fehlerhafter Formatierung von Excel, vorkommen, dass der Auswahlpfeil der Drop-Down-Liste auf der benachbarten rechten Seite angezeigt wird. Die Auswahlmöglichkeiten in den leeren Tabellenköpfen sind meistens mit Überwachungspunkten verbunden. So, dass nach der Auswahl des jeweiligen Punktes, die dazugehörigen Kontrollpunkte in der darunter liegenden Tabelle auftauchen.  Falls es keine passende Auswahlmöglichkeit gibt, kann der Tabellenkopf manuell überschrieben werden und auch manuell die Kontrollpunkte in die darunter liegende Tabelle eingetragen werden. Dabei ist zu beachten, dass beim manuellen eintragen von Kontrollpunkten die dahinter liegende verborgene Formel überschrieben wird und falls später eine andere Auswahl im Tabellenkopf getroffen wird, nicht alle Kontrollpunkte ordnungsgemäß dargestellt werden können."]
["typische Dropdown-Auswahlliste:"]
["Statusfeld:","Das Statusfeld mit dieser Hintergrundfarbe ist stets eine Dropdown-Auswahlliste, welche vier Auswahlmöglichkeiten zur Verfügung stellt. Die Symbole sind selbsterklärend und lösen eine farbliche Formatierung des jeweils  links daneben liegenden Kontrollpunktes aus. Außerdem werden Kontrollpunkte, welche mit einem Kreuz gekennzeichnet sind und automatisch rot markiert werden bei der Ausführung der Schaltfläche \"Zusammenfassung erstellen\" als \"Nicht erfüllte Kontrollpunkte\" im Tabellenblatt \"Zusammenfassung\" dargestellt."]
[null,"Das Statusfeld mit dieser Hintergrundfarbe ist ein Prüfkalkulationfeld, welches in der Regel die Einhaltung oder die Überschreitung der Grenzwerte signalisiert."]
[]
["Deckblatt:","Im Deckblatt können im Feld Ordnungsnummer, Ordnungsnummern per Dropdown-Auswahlliste ausgewählt werden oder manuell eingetragen werden."]
[]
["Schaltflächen"]
["\"Hilfe\":","Beim betätigen der Schaltfläche \"Hilfe\" werden Sie zu diesem Arbeitsblatt weitergeleitet."]
["\"Info\":","Beim betätigen der Schaltfläche \"Info\" werden Sie zum Arbeitsblatt mit zusätzlichen Informationen weitergeleitet."]
["\"Zusammenfassung erstellen\":","Beim betätigen der Schaltfläche \"Zusammenfassung erstellen\" werden alle nicht erfüllten Kontrollpunkte, welche entsprechend mit einem Kreuz im Statusfeld markiert worden sind, zusammengefasst im Arbeitsblatt \"Zusammenfassung\", dargestellt. Außerdem werden die Grenzwerte welche überschritten worden sind und automatisch im grauen Statusfeld mit roter Farbe und \"überschritten\" markiert werden ebenfalls im Arbeitsblatte \"Zusammenfassung\" übernommen. Falls Kommentare in den ausgewiesenen Feldern eingetragen worden sind, werden diese auch im Arbeitsblatt \"Zusammenfassung\" abgebildet."]
[]
["Farben und Kennzeichnungen:","Außer der oben gennanten Statusfelder sind folgende farbliche Kennzeichnung vorhanden:"]
[null,"Diese Hintergrundfarbe signalisiert die Erfüllung eines Kontrollpunktes oder eine Unterschreitung eines Grenzwertes."]
[null,"Diese Hintergrundfarbe signalisiert die Nichterfüllung eines Kontrollpunktes oder eine Überschreitung eines Grenzwertes."]
[null,"Diese Hintergrundfarbe meist mit durchgestrichenen Inhalt symbolisiert die Irrelevanz des Kontrollpunktes."]
[null,"Die folgenden Farben sind nur zur besseren Lesbarkeit"]
[null,"und Unterscheidung der einzelnen Kontrollpunkte in den "]
[null,"Tabellen dargestellt."]
["Kommentare:","Einige Eingabefelder sind mit Kommentaren oder Eingabemeldungen versehen."]
[]
["Tabellenblätter"]
[]
["Substrateinsatz und -anlieferung","Beim Substrateinsatz können die Substratmengen in t/d oder t/a eingetragen werden. Diese werden automatisch in die jeweils andere Einheit umgerechnet. Bei einer fehlerhaften Auswahl der Spalte wird jedoch die Umrechnungsformel überschrieben so, dass es empfohlen wird die Strg+Z oder \"Rückgängig\" zu betätigen."]
[]
["Gärrestlagerung und -abtransport:","Bem Arbeitsblatt Gärrestlagerung, kann die hydraulische Verweilzeit berechnet werden, wenn die Voraussetzungen, eine nicht gasdichte Abdeckung und kein reiner Einsatz von Gülle, erfüllt werden. Wenn diese erfüllt werden, wird das entsprechende Berechnungsfeld aufgedeckt. Nach dem Eintragen des Reaktorvolumens wird die hydraulische Verweilzeit berechnet, falls diese weniger als 150 Tage beträgt wird das Feld mit der Überprüfung der Restmethanbildungsrate eingeblendet."]

{"sheet":"Daten","index":13,"n_rows":23,"n_cols":46,"rows_kept":23,"cut":false,"hidden":true,"merged":[[0,3,0,4],[0,39,0,43],[0,20,0,28],[0,44,0,45],[0,5,0,7],[0,35,0,38],[0,12,0,15],[0,16,0,19],[0,29,0,34]]}
["Deckblatt","Substrateinsatz","arbeitsblattübergreifend","Substratanlieferung",null,"Substratlagerung",null,null,null,null,null,null,"Substrataufbereitung",null,null,null,"Substrateintrag",null,null,null,"Biogasverwertung",null,null,null,null,null,null,null,null,"Sicherheitseinrichtungen",null,null,null,null,null,"Gärrestaufbereitung",null,null,null,"Gärrestlagerung",null,null,null,null,"Gärrestabtransport"]
["Ordnungsnummer nach der 4. BImSchV","Substratart","Status","Anlieferungsart","Anlieferung","Lagerungsart","Fahrsilo","Güllelager","Mist-/Dungplatte","Hochsilo","Folienschlauchsilo","Lagerhalle","Aufbereitungsarten","Hydrolyse","Hygienisierung","mechanische Aufbereitung (bspw. Extruder)","Eintragsarten","Vorgrube","Feststoffdosierer","Förderschnecken","Gasverbrauchseinrichtung","BHKW","Biogasaufbereitung","Stoffe","Einheit","BHKW","Biogaskessel","Gasturbine","Biogasaufbereitung","Art der Sicherheitseinrichtung","Über- und Unterdrucksicherungen","Notfackel","Biogaskessel","BHKW","Kondensatabscheider","Aufbereitungsart","Separation","Trocknung","Totalaufbereitung","Gülleeinsatz","Lagerungsart","offen","geschlossen, nicht gasdicht","gasdicht","Abtransportart","Fahrzeugtransport"]
["1.2.2.2","Rindergülle",null,"Fahrzeugtransport","Befestigung und Sauberkeit der Fahrwege","Fahrsilo","bis an den Fahrsilorand und die Anschnittfläche gehende Abdeckung mit Beschwerung","Unterspiegelbefüllung","Lagerhöhe nicht über die Umwallung hinaus","weitestgehend emissionsfrei","Zustand der Folie (Löcher, Risse)",null,"Hydrolyse","Zustand der Abdeckung","vorgegebene Temperatur und Dauer","meist geschlossene Ausführung, deshalb emissionsfrei","Vorgrube","abgedeckte Eingabeöffnung","abgedeckte Eingabeöffnung, bei vorhandener Abdeckung","permanenter Füllstand","BHKW","Gasottomotor","Druckwechseladsorption","Kohlenmonoxid","g/m³","Einhaltung der Emissionswerte","Einhaltung der Emissionswerte","Einhaltung der Emissionswerte","Einhaltung der Emissionswerte","Über- und Unterdrucksicherungen","Sperrflüssigkeitsstand","durchgeführte Funktionsfähigkeitstests","durchgeführte Funktionsfähigkeitstests","durchgeführte Funktionsfähigkeitstests","Gewährleistung der Zugänglichkeit","Separation","Einhausung oder Abdeckung des Separators","Einhaltung der Emissionsgrenzwerte",null,"ja","offen","Unterspiegelbefüllung","Zustand der genutzten Abdeckungen","Überprüfung wie einen Fermenterbehälter","Fahrzeugtransport","Befestigung und Sauberkeit der Umfüllstation"]
["1.15","Rinderfestmist","×",null,"Anlieferung der staubenden/geruchsintensiven Substraten in geschlossenen Behältern","Güllelager","saubere vertikale, möglichst kleine Anschnittsfläche","Zustand der vorhandenen Schwimmschichten oder der genutzten Abdeckungen","Sauberkeit der Bodenplatten, der Rangierflächen, der Rinnen und der Abläufe",null,"austretender Silagesickersaft",null,"Hygienisierung","bei Möglivhkeit Wasserstoffgehalt prüfen",null,null,"Feststoffdosierer","Rezirkulationsmenge prüfen","geruchsintensive Substrate mit geruchsneutralen Substraten überlagern",null,"Biogaskessel","Zündstrahlmotor","Druckwasserwäsche","Stickstoffoxide","mg/m³","Einhaltung der Wartungsintervalle (Rechnungen, Verträge, Eigenwartung)","Einhaltung der Wartungsintervalle (Rechnungen, Verträge, Eigenwartung)","Einhaltung der Wartungsintervalle (Rechnungen, Verträge, Eigenwartung)","Einhaltung der Wartungsintervalle (Rechnungen, Verträge, Eigenwartung)","Notfackel","Frostschutzmittelstand oder funktionierende Beheizung","Betriebsstundenzähler oder die manuellen Aufzeichnungen im Betriebstagebuch","Betriebsstundenzähler oder die manuellen Aufzeichnungen im Betriebstagebuch","Betriebsstundenzähler oder die manuellen Aufzeichnungen im Betriebstagebuch","leichte/gefahrlose Möglichkeit der Kontrolle ohne der Notwendigkeit des Einstieges in Schächte/Gruben","Trocknung","kurzzeitige Lagerung der festen Gärreste, im Idealfall verdichtet und abgedeckt, alternativ nur abgedeckt",null,null,"nein","geschlossen, nicht gasdicht","Zustand der vorhandenen Schwimmschichten oder der genutzten Abdeckungen","Bestimmung der hydraulischen Verweilzeit",null,null,"Transport der Gärreste bei Möglichkeit in geschlossenen Behältern"]
["1.16","Schweinegülle","√",null,"Befeuchtung der Fahrwege, bei Gefahr von hohen Staubemissionen","Mist-/Dungplatte","komplette Abdeckung (Folien) und Beschwerung von nicht genutzten Substraten\\Fahrsilos","keine Verwendung von Strohhäcksel als Abdeckung (Methanemissionen)","Zustand der Abdeckung, falls diese vorhanden ist",null,null,null,"mechanische Aufbereitung (bspw. Extruder)","bei Möglichkeit pH-Wert prüfen",null,null,"Förderschnecken",null,"permanenter Füllstand im Feststoffdosierer",null,"Gasturbine",null,"Polyglykolwäsche","Schwefeloxide","kg/h","Überprüfung des H2S- und CH4-Gehaltes im Biogas vor dem BHKW",null,null,null,"Biogaskessel","automatisch oder manuell aufgezeichnete Auslöseereignisse","bei Möglichkeit, das gestufte Ansprechen der zusätzlichen Gasverbrauchseinrichtung und der ÜUDS","bei Möglichkeit, das gestufte Ansprechen der zusätzlichen Gasverbrauchseinrichtung und der ÜUDS","bei Möglichkeit, das gestufte Ansprechen der zusätzlichen Gasverbrauchseinrichtung und der ÜUDS","vorhandener Sperrflüssigkeitsstand, mind. 5-fachen Ansprechdruck der ÜUDS",null,"schattiger und windgeschützer Standort der Separierung und der Lagerung der festen Gärreste",null,null,null,"gasdicht","keine Verwendung von Strohhäcksel als Abdeckung (Methanemissionen)","bei Nichteinhaltung der hydraulischen Verweilzeit, Bestimmung der Restmethanbildung",null,null,"Befeuchtung der Fahrwege, bei Gefahr von hohen Staubemissionen durch befestigte Fahrwege"]
["7.1","Schweinefestmist","irrelevant",null,"Anzahl und Zeit der Anliefervorgänge im Vergleich zu den genehmigten (optional)","Hochsilo","Sauberkeit der Siloplatten, der Rangierflächen, der Rinnen und der Abläufe",null,null,null,null,null,null,null,null,null,null,null,null,null,"Biogasaufbereitung",null,"Aminwäsche","Formaldehyd","g/h",null,null,null,null,"BHKW","bei Möglichkeit, das gestufte Ansprechen der zusätzlichen Gasverbrauchseinrichtung und der ÜUDS","Auslegung auf maximal anfallende Biogasmenge","Auslegung auf maximal anfallende Biogasmenge","Auslegung auf maximal anfallende Biogasmenge","Sicherung gegen Frost (Frostschutzmittel, Einbautiefe, Beheizung)",null,null,null,null,null,null,"Bestimmung der hydraulischen Verweilzeit","Sicherstellung der ausreichenden Belüftung",null,null,"Anzahl und Zeit der Abtransportvorgänge im Vergleich zu den genehmigten (optional)"]
["8.6.2.1","Pferdemist",null,null,null,"Folienschlauchsilo","keine Eingrünung der Silage (Substanzverlust)",null,null,null,null,null,null,null,null,null,null,null,null,null,null,null,"Membrantrennung","Gesamtstaub",null,null,null,null,null,"Kondensatabscheider","Gasspeicherfüllstand (idealerweise < 50 %)","funktionsfähige Notstromversorgung","durchgeführte Wartung","durchgeführte Wartung","beim Einsatz von Kondensatpumpen die Eignung für den Ex-Bereich beachten",null,null,null,null,null,null,"bei Nichteinhaltung der hydraulischen Verweilzeit, Bestimmung der Restmethanbildung"]
["8.6.2.2","Geflügelmist",null,null,null,null,null,null,null,null,null,null,null,null,null,null,null,null,null,null,null,null,null,"Gesamtkohlenstoff",null,null,null,null,null,null,null,null,"Abnahme der Wärme","Abnahme der Wärme und der mechanische Energie","Eigenkontrolle durch den Betreiber (bestenfalls wöchentlich)"]
["8.6.3.1","Maissilage",null,null,null,null,null,null,null,null,null,null,null,null,null,null,null,null,null,null,null,null,null,"Schwefelwasserstoff",null,null,null,null,null,null,null,null,"funktionsfähige Notstromversorgung","funktionsfähige Notstromversorgung"]
["8.6.3.2","Lieschkolbenschrot (LKS)",null,null,null,null,null,null,null,null,null,null,null,null,null,null,null,null,null,null,null,null,null,"Ammoniak"]
["8.10.2.1","Körnermais",null,null,null,null,null,null,null,null,null,null,null,null,null,null,null,null,null,null,null,null,null,"Mercaptane"]
["8.10.2.2","Corn-Cob-Mix (CCM)"]
["8.11.2.4","Grassilage"]
["8.13","Stroh"]
["9.1.1.1","Getreide-GPS"]
["9.1.1.2","Getreidekorn"]
["9.36","Zuckerrüben"]
[null,"Futterrüben"]
[null,"Zuckerrübenschnitzel"]
[null,"Kartoffeln"]
[null,"Grünschnitt"]
[null,"Treber"]
[null,"Schlempen"]